fUST/lending_fUST_20250713
["ID","MTS","AMOUNT","RATE_DAILY","PERIOD"]
[371520958,1752336670257,-5000.0,0.00019178,2]
[371520959,1752336670266,-5000.0,0.00019178,2]
[371520960,1752336670276,-5000.0,0.00019178,2]
[371520961,1752336670286,-2010.35104184,0.00019178,2]
[371520962,1752336670295,-666.0,0.00019178,2]
[371520963,1752336670304,-48154.9889144,0.00019178,2]
[371520964,1752336670314,-151.0,0.000192,2]
[371520965,1752336670324,-151.0,0.000192,2]
[371520966,1752336670335,-350.52,0.000192,2]
[371520967,1752336670345,-16177.55,0.000192,2]
[371520968,1752336670354,-3048.51,0.000192,2]
[371520969,1752336670364,-151.85317382,0.00019205,2]
[371520970,1752336670374,-199.04772792,0.00019205,2]
[371520971,1752336670383,-5000.0,0.00019214,2]
[371520972,1752336670393,-158.231407,0.00019329,2]
[371520973,1752336670402,-158.231407,0.00019329,2]
[371520974,1752336670411,-151.0,0.00019329,2]
[371520975,1752336670421,-151.0,0.00019329,2]
[371520976,1752336670431,-151.0,0.00019329,2]
[371520977,1752336670440,-151.0,0.00019329,2]
[371520978,1752336670450,-151.0,0.00019329,2]
[371520979,1752336670459,-151.0,0.00019329,2]
[371520980,1752336670468,-100000.0,0.00019329,2]
[371520981,1752336670478,-1693.40842155,0.00019348,2]
[371520982,1752336670487,-500.0,0.00019398,2]
[371520983,1752336670497,-500.0,0.00019398,2]
[371520984,1752336670506,-502.54304723,0.00019398,2]
[371520985,1752336670516,-500.0,0.00019398,2]
[371520986,1752336670525,-500.0,0.00019398,2]
[371520987,1752336670535,-500.0,0.00019398,2]
[371520988,1752336670545,-1000.0,0.00019398,2]
[371520989,1752336670555,-500.0,0.00019398,2]
[371520990,1752336670564,-500.0,0.00019398,2]
[371520991,1752336670574,-638.0285363,0.00019398,2]
[371520992,1752336670585,-1000.0,0.00019398,2]
[371520993,1752336670595,-500.0,0.00019398,2]
[371520994,1752336670604,-500.0,0.00019398,2]
[371520995,1752336670614,-500.0,0.00019437,2]
[371520996,1752336670623,-1000.0,0.00019437,2]
[371520997,1752336670632,-460.0,0.00019452,2]
[371520998,1752336670642,-460.0,0.00019452,2]
[371520999,1752336670651,-460.0,0.00019452,2]
[371521000,1752336670661,-154.11173057,0.00019452,2]
[371521001,1752336670670,-460.0,0.00019452,2]
[371521002,1752336670679,-460.0,0.00019452,2]
[371521003,1752336670689,-460.0,0.00019452,2]
[371521004,1752336670699,-274.56584994,0.00019452,2]
[371521005,1752336670709,-591.64,0.00019452,2]
[371521006,1752336670723,-460.0,0.00019452,2]
[371521007,1752336670735,-487.2,0.00019452,2]
[371521008,1752336670745,-460.0,0.00019452,2]
[371521009,1752336670754,-589.21385134,0.00019452,2]
[371521010,1752336670764,-527.74,0.00019452,2]
[371521011,1752336670774,-460.0,0.00019452,2]
[371521012,1752336670783,-460.0,0.00019452,2]
[371521013,1752336670793,-460.0,0.00019452,2]
[371521014,1752336670803,-499.28,0.00019452,2]
[371521015,1752336670812,-460.0,0.00019452,2]
[371521016,1752336670822,-460.0,0.00019452,2]
[371521017,1752336670832,-263.0,0.00019452,2]
[371521018,1752336670842,-589.44,0.00019452,2]
[371521019,1752336670851,-423.08,0.00019452,2]
[371521020,1752336670860,-460.0,0.00019452,2]
[371521021,1752336670870,-460.0,0.00019452,2]
[371521022,1752336670879,-1345.9,0.00019452,2]
[371521023,1752336670889,-596.52,0.00019452,2]
[371521024,1752336670899,-460.0,0.00019452,2]
[371521025,1752336670908,-460.0,0.00019452,2]
[371521026,1752336670922,-596.13,0.00019452,2]
[371521027,1752336670932,-460.0,0.00019452,2]
[371521028,1752336670941,-489.72,0.00019452,2]
[371521029,1752336670950,-2768.77,0.00019452,2]
[371521030,1752336670961,-954.86,0.00019452,2]
[371521031,1752336670971,-460.0,0.00019452,2]
[371521032,1752336670980,-870.07,0.00019452,2]
[371521033,1752336670991,-460.0,0.00019452,2]
[371521034,1752336671001,-750.3,0.00019452,2]
[371521035,1752336671010,-460.0,0.00019452,2]
[371521036,1752336671020,-460.0,0.00019452,2]
[371521037,1752336671029,-460.0,0.00019452,2]
[371521038,1752336671038,-1059.98,0.00019452,2]
[371521039,1752336671047,-503.84,0.00019452,2]
[371521040,1752336671057,-710.04,0.00019452,2]
[371521041,1752336671066,-237.432285,0.00019452,2]
[371521042,1752336671075,-2091.97,0.00019452,2]
[371521043,1752336671087,-460.0,0.00019452,2]
[371521044,1752336671096,-460.0,0.00019452,2]
[371521045,1752336671105,-460.0,0.00019452,2]
[371521046,1752336671115,-603.82,0.00019452,2]
[371521047,1752336671124,-1248.12,0.00019452,2]
[371521048,1752336671133,-460.0,0.00019452,2]
[371521049,1752336671143,-460.0,0.00019452,2]
[371521050,1752336671152,-368.99,0.00019452,2]
[371521051,1752336671162,-460.0,0.00019452,2]
[371521052,1752336671171,-460.0,0.00019452,2]
[371521053,1752336671179,-952.94,0.00019452,2]
[371521054,1752336671188,-2986.48,0.00019452,2]
[371521055,1752336671198,-460.0,0.00019452,2]
[371521056,1752336671207,-460.0,0.00019452,2]
[371521057,1752336671216,-460.0,0.00019452,2]
[371521058,1752336671226,-1910.4,0.00019452,2]
[371521059,1752336671236,-778.51,0.00019452,2]
[371521060,1752336671246,-460.0,0.00019452,2]
[371521061,1752336671255,-460.0,0.00019452,2]
[371521062,1752336671265,-533.74,0.00019452,2]
[371521063,1752336671276,-151.0,0.00019452,2]
[371521064,1752336671286,-151.0,0.00019452,2]
[371521065,1752336671295,-460.0,0.00019452,2]
[371521066,1752336671305,-1011.42,0.00019452,2]
[371521067,1752336671315,-1042.15,0.00019452,2]
[371521068,1752336671324,-151.0,0.00019452,2]
[371521069,1752336671334,-460.0,0.00019452,2]
[371521070,1752336671344,-460.0,0.00019452,2]
[371521071,1752336671353,-322.408323,0.00019452,2]
[371521072,1752336671363,-460.0,0.00019452,2]
[371521073,1752336671372,-322.408323,0.00019452,2]
[371521074,1752336671382,-620.93,0.00019452,2]
[371521075,1752336671392,-151.0,0.00019452,2]
[371521076,1752336671401,-460.0,0.00019452,2]
[371521077,1752336671410,-3049.47,0.00019452,2]
[371521078,1752336671419,-581.95713535,0.00019452,2]
[371521079,1752336671428,-501.82376539,0.00019475,2]
[371521080,1752336671438,-587.0,0.00019516,2]
[371521081,1752336671455,-1693.40842155,0.0001959,2]
[371521082,1752336671464,-1161.87727903,0.00019694,2]
[371521083,1752336671474,-460.0,0.00019726,2]
[371521084,1752336671483,-460.0,0.00019726,2]
[371521085,1752336671493,-460.0,0.00019726,2]
[371521086,1752336671502,-460.0,0.00019726,2]
[371521087,1752336671512,-460.0,0.00019726,2]
[371521088,1752336671522,-520.16,0.00019726,2]
[371521089,1752336671532,-487.2,0.00019726,2]
[371521090,1752336671541,-460.0,0.00019726,2]
[371521091,1752336671556,-527.74,0.00019726,2]
[371521092,1752336671565,-151.0,0.00019726,2]
[371521093,1752336671575,-460.0,0.00019726,2]
[371521094,1752336671585,-460.0,0.00019726,2]
[371521095,1752336671595,-361.42,0.00019726,2]
[371521096,1752336671604,-499.28,0.00019726,2]
[371521097,1752336671614,-589.44,0.00019726,2]
[371521098,1752336671624,-151.0,0.00019726,2]
[371521099,1752336671633,-460.0,0.00019726,2]
[371521100,1752336671643,-460.0,0.00019726,2]
[371521101,1752336671772,-1345.9,0.00019726,2]
[371521102,1752336671782,-596.52,0.00019726,2]
[371521103,1752336671792,-460.0,0.00019726,2]
[371521104,1752336671801,-487.87,0.00019726,2]
[371521105,1752336671811,-460.0,0.00019726,2]
[371521106,1752336671821,-489.72,0.00019726,2]
[371521107,1752336671831,-2768.77,0.00019726,2]
[371521108,1752336671842,-954.86,0.00019726,2]
[371521109,1752336671852,-460.0,0.00019726,2]
[371521110,1752336671862,-870.07,0.00019726,2]
[371521111,1752336671871,-460.0,0.00019726,2]
[371521112,1752336671881,-750.3,0.00019726,2]
[371521113,1752336671891,-460.0,0.00019726,2]
[371521114,1752336671901,-195.79,0.00019726,2]
[371521115,1752336671913,-382.73,0.00019726,2]
[371521116,1752336671924,-151.0,0.00019726,2]
[371521117,1752336671933,-151.0,0.00019726,2]
[371521118,1752336671943,-1059.98,0.00019726,2]
[371521119,1752336671954,-503.84,0.00019726,2]
[371521120,1752336671963,-710.04,0.00019726,2]
[371521121,1752336671973,-2091.97,0.00019726,2]
[371521122,1752336671983,-460.0,0.00019726,2]
[371521123,1752336671993,-460.0,0.00019726,2]
[371521124,1752336672004,-316.2,0.00019726,2]
[371521125,1752336672014,-603.82,0.00019726,2]
[371521126,1752336672023,-1248.12,0.00019726,2]
[371521127,1752336672033,-151.0,0.00019726,2]
[371521128,1752336672042,-460.0,0.00019726,2]
[371521129,1752336672052,-460.0,0.00019726,2]
[371521130,1752336672062,-460.0,0.00019726,2]
[371521131,1752336672072,-460.0,0.00019726,2]
[371521132,1752336672092,-952.94,0.00019726,2]
[371521133,1752336672102,-2986.48,0.00019726,2]
[371521134,1752336672112,-151.0,0.00019726,2]
[371521135,1752336672121,-460.0,0.00019726,2]
[371521136,1752336672131,-151.0,0.00019726,2]
[371521137,1752336672140,-460.0,0.00019726,2]
[371521138,1752336672150,-1910.4,0.00019726,2]
[371521139,1752336672160,-460.0,0.00019726,2]
[371521140,1752336672171,-778.51,0.00019726,2]
[371521141,1752336672192,-460.0,0.00019726,2]
[371521142,1752336672206,-460.0,0.00019726,2]
[371521143,1752336672216,-533.74,0.00019726,2]
[371521144,1752336672226,-460.0,0.00019726,2]
[371521145,1752336672236,-1011.42,0.00019726,2]
[371521146,1752336672246,-1042.15,0.00019726,2]
[371521147,1752336672256,-460.0,0.00019726,2]
[371521148,1752336672266,-460.0,0.00019726,2]
[371521149,1752336672276,-151.0,0.00019726,2]
[371521150,1752336672286,-545.56,0.00019726,2]
[371521151,1752336672296,-620.93,0.00019726,2]
[371521152,1752336672306,-460.0,0.00019726,2]
[371521153,1752336672316,-3049.47,0.00019726,2]
[371521154,1752336672326,-1693.40842155,0.00019831,2]
[371521155,1752336672336,-666.18836711,0.00019889,2]
[371521156,1752336672346,-312.66,0.00019891,2]
[371521157,1752336672357,-207.4,0.00019899,2]
[371521158,1752336672367,-165.0,0.00019899,2]
[371521159,1752336672376,-151.0,0.00019899,2]
[371521160,1752336672386,-151.0,0.00019899,2]
[371521161,1752336672400,-151.0,0.00019899,2]
[371521162,1752336672411,-151.0,0.00019899,2]
[371521163,1752336672421,-151.0,0.00019899,2]
[371521164,1752336672431,-151.0,0.00019899,2]
[371521165,1752336672442,-151.0,0.00019899,2]
[371521166,1752336672452,-151.0,0.00019899,2]
[371521167,1752336672461,-151.0,0.00019899,2]
[371521168,1752336672471,-151.0,0.00019899,2]
[371521169,1752336672480,-151.0,0.00019899,2]
[371521170,1752336672490,-151.0,0.00019899,2]
[371521171,1752336672500,-151.0,0.00019899,2]
[371521172,1752336672510,-151.0,0.00019899,2]
[371521173,1752336672520,-151.0,0.00019899,2]
[371521174,1752336672530,-151.0,0.00019899,2]
[371521175,1752336672541,-151.0,0.00019899,2]
[371521176,1752336672550,-1500.0,0.00019946,2]
[371521177,1752336672560,-1500.0,0.00019985,2]
[371521178,1752336672570,-90258.0,0.0002,2]
[371521179,1752336672580,-151.0,0.0002,2]
[371521180,1752336672590,-151.0,0.0002,2]
[371521181,1752336672600,-338.881496,0.0002,2]
[371521182,1752336672610,-338.881496,0.0002,2]
[371521183,1752336672619,-460.0,0.0002,2]
[371521184,1752336672630,-158.231407,0.0002,2]
[371521185,1752336672641,-158.231407,0.0002,2]
[371521186,1752336672651,-460.0,0.0002,2]
[371521187,1752336672660,-460.0,0.0002,2]
[371521188,1752336672670,-277.3,0.0002,2]
[371521189,1752336672680,-460.0,0.0002,2]
[371521190,1752336672689,-487.2,0.0002,2]
[371521191,1752336672699,-460.0,0.0002,2]
[371521192,1752336672709,-151.0,0.0002,2]
[371521193,1752336672718,-527.74,0.0002,2]
[371521194,1752336672729,-460.0,0.0002,2]
[371521195,1752336672738,-390.62,0.0002,2]
[371521196,1752336672748,-499.28,0.0002,2]
[371521197,1752336672757,-589.44,0.0002,2]
[371521198,1752336672766,-460.0,0.0002,2]
[371521199,1752336672776,-460.0,0.0002,2]
[371521200,1752336672785,-1345.9,0.0002,2]
[371521201,1752336672795,-596.52,0.0002,2]
[371521202,1752336672804,-460.0,0.0002,2]
[371521203,1752336672814,-460.0,0.0002,2]
[371521204,1752336672823,-151.0,0.0002,2]
[371521205,1752336672834,-489.72,0.0002,2]
[371521206,1752336672844,-2768.77,0.0002,2]
[371521207,1752336672854,-954.86,0.0002,2]
[371521208,1752336672863,-460.0,0.0002,2]
[371521209,1752336672874,-870.07,0.0002,2]
[371521210,1752336672884,-383.38,0.0002,2]
[371521211,1752336672894,-750.3,0.0002,2]
[371521212,1752336672903,-460.0,0.0002,2]
[371521213,1752336672914,-1059.98,0.0002,2]
[371521214,1752336672927,-503.84,0.0002,2]
[371521215,1752336672936,-710.04,0.0002,2]
[371521216,1752336672946,-151.0,0.0002,2]
[371521217,1752336672955,-2091.97,0.0002,2]
[371521218,1752336672966,-460.0,0.0002,2]
[371521219,1752336672975,-287.096907,0.0002,2]
[371521220,1752336672985,-397.63,0.0002,2]
[371521221,1752336672995,-603.82,0.0002,2]
[371521222,1752336673005,-1248.12,0.0002,2]
[371521223,1752336673015,-460.0,0.0002,2]
[371521224,1752336673024,-460.0,0.0002,2]
[371521225,1752336673034,-460.0,0.0002,2]
[371521226,1752336673044,-460.0,0.0002,2]
[371521227,1752336673054,-952.94,0.0002,2]
[371521228,1752336673063,-2986.48,0.0002,2]
[371521229,1752336673073,-460.0,0.0002,2]
[371521230,1752336673082,-460.0,0.0002,2]
[371521231,1752336673093,-460.0,0.0002,2]
[371521232,1752336673103,-1910.4,0.0002,2]
[371521233,1752336673113,-778.51,0.0002,2]
[371521234,1752336673126,-460.0,0.0002,2]
[371521235,1752336673137,-578.65,0.0002,2]
[371521236,1752336673147,-533.74,0.0002,2]
[371521237,1752336673157,-460.0,0.0002,2]
[371521238,1752336673166,-1011.42,0.0002,2]
[371521239,1752336673179,-1042.15,0.0002,2]
[371521240,1752336673188,-460.0,0.0002,2]
[371521241,1752336673197,-460.0,0.0002,2]
[371521242,1752336673208,-620.93,0.0002,2]
[371521243,1752336673217,-460.0,0.0002,2]
[371521244,1752336673227,-3049.47,0.0002,2]
[371521245,1752336673236,-1693.40842155,0.00020072,2]
[371521246,1752336673246,-178.092,0.00020273,2]
[371521247,1752336673256,-460.0,0.00020273,2]
[371521248,1752336673265,-460.0,0.00020273,2]
[371521249,1752336673275,-574.4644503,0.00020273,2]
[371521250,1752336673284,-372.39,0.00020273,2]
[371521251,1752336673294,-487.2,0.00020273,2]
[371521252,1752336673303,-460.0,0.00020273,2]
[371521253,1752336673313,-527.74,0.00020273,2]
[371521254,1752336673324,-589.73,0.00020273,2]
[371521255,1752336673333,-499.28,0.00020273,2]
[371521256,1752336673345,-589.44,0.00020273,2]
[371521257,1752336673355,-611.713,0.00020273,2]
[371521258,1752336673364,-460.0,0.00020273,2]
[371521259,1752336673374,-460.0,0.00020273,2]
[371521260,1752336673383,-1345.9,0.00020273,2]
[371521261,1752336673393,-596.52,0.00020273,2]
[371521262,1752336673403,-460.0,0.00020273,2]
[371521263,1752336673413,-460.0,0.00020273,2]
[371521264,1752336673423,-489.72,0.00020273,2]
[371521265,1752336673432,-2768.77,0.00020273,2]
[371521266,1752336673442,-954.86,0.00020273,2]
[371521267,1752336673451,-540.23,0.00020273,2]
[371521268,1752336673461,-870.07,0.00020273,2]
[371521269,1752336673470,-750.3,0.00020273,2]
[371521270,1752336673480,-460.0,0.00020273,2]
[371521271,1752336673490,-1059.98,0.00020273,2]
[371521272,1752336673499,-503.84,0.00020273,2]
[371521273,1752336673509,-710.04,0.00020273,2]
[371521274,1752336673519,-2091.97,0.00020273,2]
[371521275,1752336673529,-460.0,0.00020273,2]
[371521276,1752336673538,-603.82,0.00020273,2]
[371521277,1752336673550,-1248.12,0.00020273,2]
[371521278,1752336673560,-460.0,0.00020273,2]
[371521279,1752336673569,-460.0,0.00020273,2]
[371521280,1752336673579,-460.0,0.00020273,2]
[371521281,1752336673590,-460.0,0.00020273,2]
[371521282,1752336673599,-952.94,0.00020273,2]
[371521283,1752336673609,-2986.48,0.00020273,2]
[371521284,1752336673620,-460.0,0.00020273,2]
[371521285,1752336673630,-460.0,0.00020273,2]
[371521286,1752336673639,-460.0,0.00020273,2]
[371521287,1752336673648,-1910.4,0.00020273,2]
[371521288,1752336673657,-778.51,0.00020273,2]
[371521289,1752336673667,-460.0,0.00020273,2]
[371521290,1752336673677,-533.74,0.00020273,2]
[371521291,1752336673688,-460.0,0.00020273,2]
[371521292,1752336673698,-1011.42,0.00020273,2]
[371521293,1752336673708,-1042.15,0.00020273,2]
[371521294,1752336673718,-460.0,0.00020273,2]
[371521295,1752336673727,-584.9,0.00020273,2]
[371521296,1752336673737,-620.93,0.00020273,2]
[371521297,1752336673747,-460.0,0.00020273,2]
[371521298,1752336673757,-3049.47,0.00020273,2]
[371521299,1752336673767,-1161.87727903,0.0002031,2]
[371521300,1752336673776,-1693.40842155,0.00020314,3]
[371521301,1752336673786,-2001.22281008,0.00020494,2]
[371521302,1752336673796,-2000.0,0.00020533,2]
[371521303,1752336673805,-151.0,0.00020547,2]
[371521304,1752336673814,-151.0,0.00020547,2]
[371521305,1752336673824,-460.0,0.00020547,2]
[371521306,1752336673833,-487.2,0.00020547,2]
[371521307,1752336673845,-460.0,0.00020547,2]
[371521308,1752336673855,-527.74,0.00020547,2]
[371521309,1752336673865,-499.28,0.00020547,2]
[371521310,1752336673874,-589.44,0.00020547,2]
[371521311,1752336673884,-460.0,0.00020547,2]
[371521312,1752336673894,-1345.9,0.00020547,2]
[371521313,1752336673904,-596.52,0.00020547,2]
[371521314,1752336673916,-460.0,0.00020547,2]
[371521315,1752336673925,-460.0,0.00020547,2]
[371521316,1752336673935,-489.72,0.00020547,2]
[371521317,1752336673944,-2768.77,0.00020547,2]
[371521318,1752336673955,-954.86,0.00020547,2]
[371521319,1752336673965,-870.07,0.00020547,2]
[371521320,1752336673975,-750.3,0.00020547,2]
[371521321,1752336673984,-460.0,0.00020547,2]
[371521322,1752336673993,-1059.98,0.00020547,2]
[371521323,1752336674003,-503.84,0.00020547,2]
[371521324,1752336674013,-710.04,0.00020547,2]
[371521325,1752336674023,-2091.97,0.00020547,2]
[371521326,1752336674152,-399.1,0.00020547,2]
[371521327,1752336674162,-603.82,0.00020547,2]
[371521328,1752336674172,-1248.12,0.00020547,2]
[371521329,1752336674181,-460.0,0.00020547,2]
[371521330,1752336674192,-460.0,0.00020547,2]
[371521331,1752336674201,-460.0,0.00020547,2]
[371521332,1752336674211,-460.0,0.00020547,2]
[371521333,1752336674221,-952.94,0.00020547,2]
[371521334,1752336674230,-2986.48,0.00020547,2]
[371521335,1752336674239,-460.0,0.00020547,2]
[371521336,1752336674249,-460.0,0.00020547,2]
[371521337,1752336674259,-157.46,0.00020547,2]
[371521338,1752336674268,-1910.4,0.00020547,2]
[371521339,1752336674277,-778.51,0.00020547,2]
[371521340,1752336674287,-460.0,0.00020547,2]
[371521341,1752336674297,-533.74,0.00020547,2]
[371521342,1752336674306,-460.0,0.00020547,2]
[371521343,1752336674316,-1011.42,0.00020547,2]
[371521344,1752336674325,-1042.15,0.00020547,2]
[371521345,1752336674335,-460.0,0.00020547,2]
[371521346,1752336674345,-620.93,0.00020547,2]
[371521347,1752336674354,-460.0,0.00020547,2]
[371521348,1752336674364,-3049.47,0.00020547,2]
[371521349,1752336674373,-1693.40842155,0.00020555,3]
[371521350,1752336674384,-5000.0,0.00020659,2]
[371521351,1752336674393,-1693.40842155,0.00020797,4]
[371521352,1752336674403,-500.0,0.00020814,2]
[371521353,1752336674413,-540.04,0.00020821,2]
[371521354,1752336674422,-487.2,0.00020821,2]
[371521355,1752336674431,-442.44,0.00020821,2]
[371521356,1752336674441,-527.74,0.00020821,2]
[371521357,1752336674451,-499.28,0.00020821,2]
[371521358,1752336674461,-589.44,0.00020821,2]
[371521359,1752336674470,-452.31,0.00020821,2]
[371521360,1752336674481,-1345.9,0.00020821,2]
[371521361,1752336674490,-596.52,0.00020821,2]
[371521362,1752336674500,-460.0,0.00020821,2]
[371521363,1752336674510,-494.24,0.00020821,2]
[371521364,1752336674519,-489.72,0.00020821,2]
[371521365,1752336674529,-2768.77,0.00020821,2]
[371521366,1752336674539,-954.86,0.00020821,2]
[371521367,1752336674549,-870.07,0.00020821,2]
[371521368,1752336674559,-750.3,0.00020821,2]
[371521369,1752336674569,-183.43,0.00020821,2]
[371521370,1752336674579,-1059.98,0.00020821,2]
[371521371,1752336674590,-503.84,0.00020821,2]
[371521372,1752336674600,-710.04,0.00020821,2]
[371521373,1752336674610,-2091.97,0.00020821,2]
[371521374,1752336674620,-603.82,0.00020821,2]
[371521375,1752336674631,-1248.12,0.00020821,2]
[371521376,1752336674641,-439.93,0.00020821,2]
[371521377,1752336674650,-460.0,0.00020821,2]
[371521378,1752336674660,-460.0,0.00020821,2]
[371521379,1752336674670,-460.0,0.00020821,2]
[371521380,1752336674679,-952.94,0.00020821,2]
[371521381,1752336674689,-2986.48,0.00020821,2]
[371521382,1752336674698,-460.0,0.00020821,2]
[371521383,1752336674708,-460.0,0.00020821,2]
[371521384,1752336674718,-1910.4,0.00020821,2]
[371521385,1752336674728,-778.51,0.00020821,2]
[371521386,1752336674737,-460.0,0.00020821,2]
[371521387,1752336674747,-533.74,0.00020821,2]
[371521388,1752336674757,-151.0,0.00020821,2]
[371521389,1752336674768,-151.0,0.00020821,2]
[371521390,1752336674778,-460.0,0.00020821,2]
[371521391,1752336674788,-1011.42,0.00020821,2]
[371521392,1752336674798,-1042.15,0.00020821,2]
[371521393,1752336674808,-151.0,0.00020821,2]
[371521394,1752336674818,-400.45,0.00020821,2]
[371521395,1752336674828,-322.408323,0.00020821,2]
[371521396,1752336674839,-322.408323,0.00020821,2]
[371521397,1752336674849,-151.0,0.00020821,2]
[371521398,1752336674859,-620.93,0.00020821,2]
[371521399,1752336674869,-460.0,0.00020821,2]
[371521400,1752336674879,-3049.47,0.00020821,2]
[371521401,1752336674889,-625.32,0.00020838,2]
[371521402,1752336674899,-350.52,0.000209,2]
[371521403,1752336674910,-16177.55,0.000209,2]
[371521404,1752336674920,-3048.51,0.000209,2]
[371521405,1752336674929,-151.0,0.000209,4]
[371521406,1752336674939,-1161.87727903,0.00020926,2]
[371521407,1752336674949,-405.719,0.00021,2]
[371521408,1752336674960,-410.826,0.00021,2]
[371521409,1752336674970,-1693.40842155,0.00021038,4]
[371521410,1752336674979,-666.18836711,0.00021072,2]
[371521411,1752336674990,-1000.0,0.00021081,2]
[371521412,1752336675001,-3800.29467078,0.00021081,2]
[371521413,1752336675011,-487.2,0.00021095,2]
[371521414,1752336675021,-527.74,0.00021095,2]
[371521415,1752336675030,-499.28,0.00021095,2]
[371521416,1752336675040,-589.44,0.00021095,2]
[371521417,1752336675050,-151.0,0.00021095,2]
[371521418,1752336675059,-1345.9,0.00021095,2]
[371521419,1752336675069,-596.52,0.00021095,2]
[371521420,1752336675079,-460.0,0.00021095,2]
[371521421,1752336675090,-151.0,0.00021095,2]
[371521422,1752336675100,-151.0,0.00021095,2]
[371521423,1752336675110,-151.0,0.00021095,2]
[371521424,1752336675119,-2768.77,0.00021095,2]
[371521425,1752336675129,-489.72,0.00021095,2]
[371521426,1752336675138,-954.86,0.00021095,2]
[371521427,1752336675147,-870.07,0.00021095,2]
[371521428,1752336675158,-750.3,0.00021095,2]
[371521429,1752336675167,-1059.98,0.00021095,2]
[371521430,1752336675177,-503.84,0.00021095,2]
[371521431,1752336675186,-710.04,0.00021095,2]
[371521432,1752336675196,-2091.97,0.00021095,2]
[371521433,1752336675206,-151.0,0.00021095,2]
[371521434,1752336675216,-603.82,0.00021095,2]
[371521435,1752336675225,-151.0,0.00021095,2]
[371521436,1752336675235,-1248.12,0.00021095,2]
[371521437,1752336675245,-189.06,0.00021095,2]
[371521438,1752336675255,-460.0,0.00021095,2]
[371521439,1752336675265,-460.0,0.00021095,2]
[371521440,1752336675274,-952.94,0.00021095,2]
[371521441,1752336675284,-2986.48,0.00021095,2]
[371521442,1752336675294,-460.0,0.00021095,2]
[371521443,1752336675303,-460.0,0.00021095,2]
[371521444,1752336675312,-1910.4,0.00021095,2]
[371521445,1752336675322,-778.51,0.00021095,2]
[371521446,1752336675332,-460.0,0.00021095,2]
[371521447,1752336675343,-533.74,0.00021095,2]
[371521448,1752336675352,-556.2,0.00021095,2]
[371521449,1752336675362,-1011.42,0.00021095,2]
[371521450,1752336675371,-1042.15,0.00021095,2]
[371521451,1752336675381,-620.93,0.00021095,2]
[371521452,1752336675391,-460.0,0.00021095,2]
[371521453,1752336675401,-3049.47,0.00021095,2]
[371521454,1752336675411,-562.357597,0.00021253,2]
[371521455,1752336675420,-215.0738,0.00021268,2]
[371521456,1752336675430,-500.0,0.00021268,2]
[371521457,1752336675439,-500.0,0.00021268,2]